[Event "EYCC 2017"]
[Site "Mamaia"]
[Date "2017.09.07"]
[Round "3"]
[White "Katopodis, Dimitrios"]
[Black "Zachary, Matheo"]
[Result "1/2-1/2"]
[ECO "D12"]
[WhiteElo "2210"]
[BlackElo "2325"]
[Annotator "NA"]
[PlyCount "81"]
[EventDate "2017.??.??"]
[EventType "swiss"]
[EventCountry "ROU"]
[SourceTitle "playchess.com"]
[Source "ChessBase"]
[SourceQuality "1"]
[TimeControl "40/5400+30:1800+30"]

1. d4 {[%emt 0:00:00]} d5 {[%emt 0:00:07]} 2. Nf3 {[%emt 0:00:00]} Nf6 {[%emt 0:00:06]} 3. c4 {[%emt 0:00:00]} c6 {[%emt 0:00:26]} 4. e3 {[%emt 0:00:15]} Bf5 {[%emt 0:00:13]} 5. Nc3 {[%emt 0:00:21]} e6 {[%emt 0:00:07]} 6. Nh4 {[%emt 0:00:50]} Be4 {[%emt 0:00:06]} 7. f3 {[%emt 0:00:51]} Bg6 {[%emt 0:00:05]} 8. Qb3 {[%emt 0:00:33]} b5 {[%emt 0:00:22]} 9. c5 {[%emt 0:08:30]} a5 {[%emt 0:00:33]} 10. Nxg6 {[%emt 0:13:43]} hxg6 {[%emt 0:00:40]} 11. g3 {[%emt 0:06:36]} Nbd7 {[%emt 0:06:24]} 12. Bd2 {[%emt 0:05:01]} Qc7 {[%emt 0:04:31]} 13. O-O-O {[%emt 0:05:02]} Be7 {[%emt 0:09:22]} 14. Be2 {[%emt 0:03:31]} e5 {[%emt 0:08:15]} 15. Be1 {[%emt 0:08:12]} Qa7 {[%emt 0:15:54]} 16. Qc2 {[%emt 0:05:24]} Qb8 {[%emt 0:04:38]} 17. Bd3 {[%emt 0:04:41]} Bd8 {[%emt 0:02:06]} 18. f4 {[%emt 0:07:31]} e4 {[%emt 0:01:50]} 19. Be2 {[%emt 0:00:48]} Bc7 {[%emt 0:05:06]} 20. Kb1 {[%emt 0:03:16]} Nf8 {[%emt 0:01:33]} 21. h3 {[%emt 0:09:18]} Qc8 {[%emt 0:02:57]} 22. g4 {[%emt 0:00:35]} Qd7 {[%emt 0:03:20]} 23. Bf2 {[%emt 0:03:11]} Ng8 {[%emt 0:02:51]} 24. Rdg1 {[%emt 0:01:49]} Ne7 {[%emt 0:01:18]} 25. h4 {[%emt 0:00:52]} Ne6 {[%emt 0:00:41]} 26. Qd1 {[%emt 0:03:22]} a4 {[%emt 0:03:29]} 27. a3 {[%emt 0:00:52]} Ba5 {[%emt 0:01:26]} 28. Na2 {[%emt 0:00:28]} Qb7 {[%emt 0:01:51]} 29. Be1 {[%emt 0:00:39]} Bxe1 {[%emt 0:01:30]} 30. Qxe1 {[%emt 0:00:16]} O-O-O {[%emt 0:03:32]} 31. Qf2 {[%emt 0:00:58]} Rh6 {[%emt 0:01:41]} 32. Rh2 {[%emt 0:03:08]} Rdh8 {[%emt 0:01:13]} 33. Rgh1 {[%emt 0:00:52]} Qc7 {[%emt 0:02:29]} 34. Nb4 {[%emt 0:02:36]} Kb7 {[%emt 0:00:28]} 35. Qf1 {[%emt 0:01:34]} Qd7 {[%emt 0:03:41]} 36. Qf2 {[%emt 0:01:20]} Nc7 {[%emt 0:01:17]} 37. Kc2 {[%emt 0:00:59]} f6 {[%emt 0:01:33]} 38. Kc1 {[%emt 0:00:29]} R6h7 {[%emt 0:03:19]} 39. Kc2 {[%emt 0:00:31]} Rh6 {[%emt 0:04:24]} 40. Kb1 {[%emt 0:00:00]} R6h7 {[%emt 0:01:31]} 41. Qg3 {[%emt 0:08:02]} 1/2-1/2

[Event "EYCC 2017"]
[Site "Mamaia"]
[Date "2017.09.07"]
[Round "3"]
[White "Antonica, Dragos-Andrei"]
[Black "Mitusov, Semen"]
[Result "1-0"]
[ECO "D02"]
[WhiteElo "2188"]
[BlackElo "1917"]
[Annotator "NA"]
[PlyCount "97"]
[EventDate "2017.??.??"]
[EventType "swiss"]
[EventCountry "ROU"]
[SourceTitle "playchess.com"]
[Source "ChessBase"]
[SourceQuality "1"]
[TimeControl "40/5400+30:1800+30"]

1. d4 {[%emt 0:00:00]} d5 {[%emt 0:00:23]} 2. Nf3 {[%emt 0:00:16]} Bf5 {[%emt 0:01:26]} 3. c4 {[%emt 0:03:24]} e6 {[%emt 0:05:07]} 4. Nc3 {[%emt 0:01:14]} c6 {[%emt 0:01:11]} 5. Bf4 {[%emt 0:07:03]} Bd6 {[%emt 0:08:21]} 6. Bg3 {[%emt 0:02:11]} Bxg3 {[%emt 0:01:54]} 7. hxg3 {[%emt 0:00:13]} h6 {[%emt 0:02:07]} 8. e3 {[%emt 0:00:22]} Nd7 {[%emt 0:01:01]} 9. cxd5 {[%emt 0:10:14]} exd5 {[%emt 0:00:46]} 10. Nh4 {[%emt 0:04:14]} Bh7 {[%emt 0:03:59]} 11. Bd3 {[%emt 0:01:52]} Bxd3 {[%emt 0:02:21]} 12. Qxd3 {[%emt 0:00:02]} Ngf6 {[%emt 0:02:50]} 13. Nf5 {[%emt 0:22:26]} O-O {[%emt 0:00:45]} 14. O-O {[%emt 0:28:55]} g6 {[%emt 0:05:34]} 15. Nh4 {[%emt 0:01:00]} Kg7 {[%emt 0:01:20]} 16. b4 {[%emt 0:04:09]} Re8 {[%emt 0:02:42]} 17. b5 {[%emt 0:01:09]} Ne4 {[%emt 0:00:56]} 18. bxc6 {[%emt 0:01:00]} bxc6 {[%emt 0:00:22]} 19. Rfc1 {[%emt 0:01:03]} Qf6 {[%emt 0:03:07]} 20. Nf3 {[%emt 0:01:00]} g5 {[%emt 0:01:41]} 21. Qc2 {[%emt 0:00:40]} Rac8 {[%emt 0:06:17]} 22. Rab1 {[%emt 0:00:58]} Nf8 {[%emt 0:08:54]} 23. Nxe4 {[%emt 0:01:41]} dxe4 {[%emt 0:04:40]} 24. Ne5 {[%emt 0:01:09]} Ng6 {[%emt 0:02:27]} 25. Nd7 {[%emt 0:02:28]} Qf5 {[%emt 0:03:07]} 26. Nc5 {[%emt 0:00:13]} g4 {[%emt 0:03:27]} 27. Rb7 {[%emt 0:00:55]} h5 {[%emt 0:00:48]} 28. Rcb1 {[%emt 0:01:28]} h4 {[%emt 0:00:46]} 29. Rxa7 {[%emt 0:00:33]} h3 {[%emt 0:03:31]} 30. Rbb7 {[%emt 0:00:37]} Nh8 {[%emt 0:01:17]} 31. Nd7 {[%emt 0:00:52]} hxg2 {[%emt 0:03:56]} 32. Ne5 {[%emt 0:01:05]} Rf8 {[%emt 0:03:15]} 33. Qe2 c5 {[%emt 0:01:14]} 34. Qxg4+ {[%emt 0:01:42]} Qxg4 {[%emt 0:00:06]} 35. Nxg4 {[%emt 0:00:01]} c4 {[%emt 0:00:38]} 36. Rb2 {[%emt 0:00:10]} Ng6 {[%emt 0:00:34]} 37. Rc2 {[%emt 0:00:30]} Rh8 {[%emt 0:00:19]} 38. Kxg2 {[%emt 0:00:32]} Rh5 {[%emt 0:00:56]} 39. Ra4 {[%emt 0:00:51]} f5 {[%emt 0:01:04]} 40. Ra7+ {[%emt 0:00:00]} Kf8 {[%emt 0:00:27]} 41. Nf6 {[%emt 0:02:50]} Rh6 {[%emt 0:01:00]} 42. Nd7+ {[%emt 0:02:28]} Kg8 {[%emt 0:03:03]} 43. Ra4 {[%emt 0:02:38]} Kf7 {[%emt 0:02:26]} 44. Rcxc4 {[%emt 0:02:00]} Rch8 {[%emt 0:00:49]} 45. Ra7 {[%emt 0:02:25]} Rh1 {[%emt 0:02:45]} 46. Ne5+ {[%emt 0:00:44]} Kg8 {[%emt 0:00:21]} 47. Rc8+ {[%emt 0:00:17]} Nf8 {[%emt 0:00:03]} 48. Rxf8+ {[%emt 0:00:11]} Kxf8 {[%emt 0:00:04]} 49. Ng6+ {[%emt 0:00:05]} 1-0

[Event "EYCC 2017"]
[Site "Mamaia"]
[Date "2017.09.07"]
[Round "3"]
[White "Ognean, Mihnea-Ionut"]
[Black "Van Dael, Siem"]
[Result "1-0"]
[ECO "C50"]
[WhiteElo "2166"]
[BlackElo "2319"]
[Annotator "NA"]
[PlyCount "83"]
[EventDate "2017.??.??"]
[EventType "swiss"]
[EventCountry "ROU"]
[SourceTitle "playchess.com"]
[Source "ChessBase"]
[SourceQuality "1"]
[TimeControl "40/5400+30:1800+30"]

1. e4 {[%emt 0:00:00]} e5 {[%emt 0:00:04]} 2. Nf3 {[%emt 0:00:00]} Nc6 {[%emt 0:00:05]} 3. Bc4 {[%emt 0:00:00]} Nf6 {[%emt 0:00:06]} 4. d3 {[%emt 0:00:02]} Bc5 {[%emt 0:00:16]} 5. c3 {[%emt 0:00:13]} d6 {[%emt 0:00:35]} 6. O-O {[%emt 0:00:38]} a6 {[%emt 0:00:44]} 7. Bb3 {[%emt 0:00:20]} Ba7 {[%emt 0:00:51]} 8. Nbd2 {[%emt 0:01:28]} O-O {[%emt 0:00:39]} 9. h3 {[%emt 0:00:44]} Re8 {[%emt 0:13:53]} 10. Re1 {[%emt 0:00:51]} Be6 {[%emt 0:01:14]} 11. Nf1 {[%emt 0:06:06]} h6 {[%emt 0:03:38]} 12. Ng3 {[%emt 0:05:26]} d5 {[%emt 0:05:39]} 13. exd5 {[%emt 0:02:44]} Nxd5 {[%emt 0:04:40]} 14. Bc2 {[%emt 0:06:45]} Qd6 {[%emt 0:13:16]} 15. Nh4 {[%emt 0:03:51]} Rad8 {[%emt 0:16:41]} 16. Nhf5 {[%emt 0:05:10]} Bxf5 {[%emt 0:03:59]} 17. Nxf5 {[%emt 0:00:08]} Qf6 {[%emt 0:00:08]} 18. Qf3 {[%emt 0:16:15]} Kf8 {[%emt 0:13:18]} 19. Bd2 {[%emt 0:17:21]} Nde7 {[%emt 0:06:00]} 20. Nxe7 {[%emt 0:03:36]} Qxf3 {[%emt 0:00:06]} 21. Ng6+ {[%emt 0:00:20]} fxg6 {[%emt 0:00:02]} 22. gxf3 {[%emt 0:00:06]} g5 {[%emt 0:02:45]} 23. Re4 {[%emt 0:03:48]} Re7 {[%emt 0:02:28]} 24. Rae1 {[%emt 0:03:21]} Rd6 {[%emt 0:06:22]} 25. Be3 {[%emt 0:06:30]} Bb6 {[%emt 0:02:31]} 26. Kg2 {[%emt 0:02:42]} Kf7 {[%emt 0:01:10]} 27. b4 {[%emt 0:02:38]} Kf6 {[%emt 0:00:46]} 28. a4 {[%emt 0:00:18]} Nb8 {[%emt 0:01:20]} 29. a5 {[%emt 0:03:51]} Bxe3 {[%emt 0:00:02]} 30. fxe3 {[%emt 0:00:10]} Rc6 {[%emt 0:00:57]} 31. c4 {[%emt 0:01:14]} b5 {[%emt 0:00:41]} 32. c5 {[%emt 0:01:34]} Rd7 {[%emt 0:00:35]} 33. d4 {[%emt 0:00:52]} Re6 {[%emt 0:00:21]} 34. Bb3 {[%emt 0:00:42]} Ree7 {[%emt 0:00:43]} 35. d5 {[%emt 0:00:19]} c6 {[%emt 0:00:52]} 36. d6 {[%emt 0:00:16]} Re8 {[%emt 0:00:01]} 37. f4 {[%emt 0:00:44]} Rdd8 {[%emt 0:00:10]} 38. fxe5+ {[%emt 0:00:23]} Kf5 {[%emt 0:00:56]} 39. Bc2 {[%emt 0:00:04]} Ke6 {[%emt 0:00:50]} 40. Rf1 {[%emt 0:00:00]} Kd5 {[%emt 0:00:28]} 41. e6 {[%emt 0:00:40]} Rxe6 {[%emt 0:03:20]} 42. Rd1# {[%emt 0:00:05]} 1-0

[Event "EYCC 2017"]
[Site "Mamaia"]
[Date "2017.09.07"]
[Round "3"]
[White "Olde, Margareth"]
[Black "Jorge, Rita Maria Osorio"]
[Result "1/2-1/2"]
[ECO "E06"]
[WhiteElo "2161"]
[BlackElo "1923"]
[Annotator "ChessBase"]
[PlyCount "122"]
[EventDate "2017.??.??"]
[EventType "swiss"]
[EventCountry "ROU"]
[SourceTitle "playchess.com"]
[Source "ChessBase"]
[SourceQuality "1"]
[TimeControl "40/5400+30:1800+30"]

1. d4 {[%emt 0:00:00]} d5 {[%emt 0:00:05]} 2. c4 {[%emt 0:00:00]} e6 {[%emt 0:00:05]} 3. Nf3 {[%emt 0:00:00]} Nf6 {[%emt 0:00:05]} 4. g3 {[%emt 0:00:18]} Be7 {[%emt 0:00:09]} 5. Bg2 {[%emt 0:00:07]} O-O {[%emt 0:00:11]} 6. O-O {[%emt 0:00:06]} dxc4 {[%emt 0:00:04]} 7. Qc2 {[%emt 0:00:21]} a6 {[%emt 0:00:07]} 8. a4 {[%emt 0:00:09]} Bd7 {[%emt 0:02:33]} 9. Qxc4 {[%emt 0:00:11]} Bc6 {[%emt 0:01:26]} 10. Bg5 {[%emt 0:02:28]} Bd5 {[%emt 0:01:40]} 11. Qd3 {[%emt 0:00:10]} c5 {[%emt 0:16:22]} 12. Nc3 {[%emt 0:01:02]} Bc6 {[%emt 0:01:36]} 13. dxc5 {[%emt 0:04:35]} Qxd3 {[%emt 0:05:18]} 14. exd3 {[%emt 0:00:04]} Bxc5 {[%emt 0:00:52]} 15. d4 {[%emt 0:05:08]} Ba7 {[%emt 0:21:07]} 16. Rfd1 {[%emt 0:06:50]} Nd5 {[%emt 0:22:26]} 17. Ne4 {[%emt 0:18:25]} h6 {[%emt 0:05:53]} 18. Bd2 {[%emt 0:05:18]} Nd7 {[%emt 0:05:31]} 19. b3 {[%emt 0:03:17]} N5f6 {[%emt 0:04:31]} 20. Nd6 {[%emt 0:09:53]} Ne4 {[%emt 0:06:35]} 21. Bb4 {[%emt 0:03:53]} Nxd6 {[%emt 0:02:08]} 22. Bxd6 {[%emt 0:00:04]} Rfd8 {[%emt 0:00:32]} 23. Rac1 {[%emt 0:04:20]} Rac8 {[%emt 0:01:05]} 24. Rd3 {[%emt 0:06:56]} Nf6 {[%emt 0:00:36]} 25. Be7 {[%emt 0:13:25]} Rd7 {[%emt 0:00:14]} 26. Bc5 {[%emt 0:02:21]} Bxc5 {[%emt 0:00:21]} 27. Rxc5 {[%emt 0:00:01]} Rdd8 {[%emt 0:00:28]} 28. h3 {[%emt 0:02:32]} Ne4 {[%emt 0:00:45]} 29. Rc2 {[%emt 0:02:39]} Bd5 {[%emt 0:00:48]} 30. Re2 {[%emt 0:00:50]} Rc1+ {[%emt 0:00:07]} 31. Kh2 {[%emt 0:00:48]} Rdc8 {[%emt 0:00:26]} 32. Ne5 {[%emt 0:02:18]} R1c2 {[%emt 0:00:54]} 33. Rde3 {[%emt 0:03:37]} Nxf2 {[%emt 0:00:29]} 34. Nc4 {[%emt 0:01:31]} Rxe2 {[%emt 0:00:26]} 35. Rxe2 {[%emt 0:00:01]} Bxg2 {[%emt 0:00:38]} 36. Kxg2 {[%emt 0:01:02]} Nd3 {[%emt 0:00:14]} 37. Rd2 {[%emt 0:01:42]} Nb4 {[%emt 0:00:11]} 38. a5 {[%emt 0:01:47]} Kf8 {[%emt 0:00:49]} 39. Kf3 {[%emt 0:00:21]} Ke7 {[%emt 0:00:08]} 40. g4 {[%emt 0:00:00]} Rc7 {[%emt 0:01:49]} 41. Ke4 {[%emt 0:06:25]} Rd7 {[%emt 0:08:27]} 42. Nb6 {[%emt 0:06:42]} Rd8 {[%emt 0:04:01]} 43. Rd1 {[%emt 0:05:02]} Nd5 {[%emt 0:02:01]} 44. Rc1 {[%emt 0:08:15]} Nf6+ {[%emt 0:09:12]} 45. Ke5 {[%emt 0:00:22]} Nd7+ {[%emt 0:05:52]} 46. Ke4 {[%emt 0:00:29]} Nxb6 {[%emt 0:01:16]} 47. axb6 {[%emt 0:00:01]} Kd6 {[%emt 0:00:52]} 48. Rc7 {[%emt 0:01:02]} Rd7 {[%emt 0:00:05]} 49. Rc8 {[%emt 0:01:37]} g6 {[%emt 0:02:06]} 50. h4 {[%emt 0:04:12]} f5+ {[%emt 0:00:41]} 51. gxf5 {[%emt 0:00:54]} gxf5+ {[%emt 0:00:04]} 52. Kd3 {[%emt 0:00:12]} Rg7 {[%emt 0:00:44]} 53. Rh8 {[%emt 0:00:28]} Rg6 {[%emt 0:00:52]} 54. h5 {[%emt 0:00:48]} Rf6 {[%emt 0:00:14]} 55. Rc8 {[%emt 0:00:10]} Rf7 {[%emt 0:00:47]} 56. Ke3 {[%emt 0:00:16]} Rh7 {[%emt 0:00:46]} 57. b4 {[%emt 0:00:47]} Rf7 {[%emt 0:00:30]} 58. Rh8 {[%emt 0:02:00]} Rf6 {[%emt 0:00:05]} 59. Rc8 {[%emt 0:00:08]} Rf7 {[%emt 0:00:06]} 60. Rh8 {[%emt 0:00:04]} Rf6 {[%emt 0:01:20]} 61. Rc8 {[%emt 0:00:09]} Rf7 {[%emt 0:00:32]} 1/2-1/2

[Event "EYCC 2017"]
[Site "Mamaia"]
[Date "2017.09.07"]
[Round "3"]
[White "Makarian, Rudik"]
[Black "Avalyan, Artur"]
[Result "1-0"]
[ECO "E47"]
[WhiteElo "2146"]
[BlackElo "2277"]
[Annotator "NA"]
[PlyCount "47"]
[EventDate "2017.??.??"]
[EventType "swiss"]
[EventCountry "ROU"]
[SourceTitle "playchess.com"]
[Source "ChessBase"]
[SourceQuality "1"]
[TimeControl "40/5400+30:1800+30"]

1. d4 {[%emt 0:00:00]} Nf6 {[%emt 0:00:08]} 2. c4 {[%emt 0:00:00]} e6 {[%emt 0:00:07]} 3. Nc3 {[%emt 0:00:00]} Bb4 {[%emt 0:00:05]} 4. e3 {[%emt 0:00:13]} O-O {[%emt 0:00:06]} 5. Bd3 {[%emt 0:00:10]} c5 {[%emt 0:00:07]} 6. Nf3 {[%emt 0:00:22]} d5 {[%emt 0:00:07]} 7. O-O {[%emt 0:01:39]} cxd4 {[%emt 0:00:12]} 8. exd4 {[%emt 0:00:06]} dxc4 {[%emt 0:00:03]} 9. Bxc4 {[%emt 0:00:06]} b6 {[%emt 0:00:17]} 10. Bg5 {[%emt 0:00:11]} Bb7 {[%emt 0:00:16]} 11. Qe2 {[%emt 0:00:06]} Bxc3 {[%emt 0:01:24]} 12. bxc3 {[%emt 0:00:05]} Nbd7 {[%emt 0:01:00]} 13. Ne5 {[%emt 0:00:29]} Rc8 {[%emt 0:06:26]} 14. Rac1 {[%emt 0:07:45]} Nxe5 {[%emt 0:13:04]} 15. dxe5 {[%emt 0:01:42]} Rc5 {[%emt 0:00:35]} 16. f4 {[%emt 0:17:25]} Rxc4 {[%emt 0:10:06]} 17. exf6 {[%emt 0:11:31]} Qd5 {[%emt 0:19:51]} 18. fxg7 {[%emt 0:06:43]} Kxg7 {[%emt 0:08:00]} 19. Be7 Rfc8 {[%emt 0:05:36]} 20. Qg4+ {[%emt 0:06:20]} Kh6 {[%emt 0:00:08]} 21. Rf3 {[%emt 0:02:08]} Rxc3 {[%emt 0:01:37]} 22. Qg5+ {[%emt 0:00:05]} Qxg5 {[%emt 0:00:07]} 23. fxg5+ {[%emt 0:00:04]} Kg6 {[%emt 0:00:17]} 24. Rfxc3 {[%emt 0:00:06]} 1-0

[Event "EYCC 2017"]
[Site "Mamaia"]
[Date "2017.09.07"]
[Round "3"]
[White "Muetsch, Annmarie"]
[Black "Nastase, Andreea-Cristina"]
[Result "1/2-1/2"]
[ECO "B35"]
[WhiteElo "2137"]
[BlackElo "1986"]
[Annotator "NA"]
[PlyCount "103"]
[EventDate "2017.??.??"]
[EventType "swiss"]
[EventCountry "ROU"]
[SourceTitle "playchess.com"]
[Source "ChessBase"]
[SourceQuality "1"]
[TimeControl "40/5400+30:1800+30"]

1. e4 {[%emt 0:00:00]} c5 {[%emt 0:00:04]} 2. Nf3 {[%emt 0:00:00]} Nc6 {[%emt 0:00:06]} 3. d4 {[%emt 0:00:00]} cxd4 {[%emt 0:00:05]} 4. Nxd4 {[%emt 0:00:00]} g6 {[%emt 0:00:05]} 5. Nc3 {[%emt 0:00:55]} Bg7 {[%emt 0:01:02]} 6. Be3 {[%emt 0:00:50]} Nf6 {[%emt 0:00:26]} 7. Bc4 {[%emt 0:00:57]} Qa5 {[%emt 0:02:31]} 8. O-O {[%emt 0:01:00]} O-O {[%emt 0:01:25]} 9. Bb3 {[%emt 0:00:35]} d6 {[%emt 0:01:25]} 10. h3 {[%emt 0:01:07]} Bd7 {[%emt 0:02:54]} 11. Re1 {[%emt 0:02:07]} Rfc8 {[%emt 0:00:40]} 12. Nf3 {[%emt 0:09:06]} h6 {[%emt 0:18:55]} 13. Qe2 {[%emt 0:21:14]} Qh5 {[%emt 0:19:02]} 14. Rad1 {[%emt 0:10:07]} g5 {[%emt 0:04:09]} 15. Nd4 {[%emt 0:14:16]} Qxe2 {[%emt 0:20:22]} 16. Rxe2 {[%emt 0:02:48]} Na5 {[%emt 0:02:07]} 17. Nf5 {[%emt 0:13:54]} Bxf5 {[%emt 0:03:33]} 18. exf5 {[%emt 0:00:07]} Nxb3 {[%emt 0:02:16]} 19. axb3 {[%emt 0:01:44]} Nd7 {[%emt 0:01:59]} 20. Nd5 {[%emt 0:02:15]} Kf8 {[%emt 0:01:07]} 21. Bd4 {[%emt 0:08:48]} Be5 {[%emt 0:07:12]} 22. c4 {[%emt 0:01:55]} e6 {[%emt 0:04:27]} 23. fxe6 {[%emt 0:01:52]} fxe6 {[%emt 0:00:05]} 24. Nc3 {[%emt 0:02:18]} Ke7 {[%emt 0:01:50]} 25. Nb5 {[%emt 0:01:02]} a6 {[%emt 0:01:22]} 26. Bxe5 {[%emt 0:00:47]} dxe5 {[%emt 0:00:27]} 27. Nc3 {[%emt 0:02:21]} Rab8 {[%emt 0:00:56]} 28. Red2 {[%emt 0:01:00]} Rc7 {[%emt 0:00:12]} 29. Rd6 {[%emt 0:00:42]} b5 {[%emt 0:00:50]} 30. Rxa6 {[%emt 0:00:37]} bxc4 {[%emt 0:00:04]} 31. bxc4 {[%emt 0:00:26]} Rxb2 {[%emt 0:01:36]} 32. Rdd6 {[%emt 0:00:36]} Nc5 {[%emt 0:01:13]} 33. Rac6 {[%emt 0:00:22]} Rxc6 {[%emt 0:00:18]} 34. Rxc6 {[%emt 0:00:04]} Nd3 {[%emt 0:00:10]} 35. Ne4 {[%emt 0:01:01]} Re2 {[%emt 0:01:18]} 36. Nc5 {[%emt 0:00:24]} Re1+ {[%emt 0:00:19]} 37. Kh2 {[%emt 0:00:04]} Nxc5 {[%emt 0:00:53]} 38. Rxc5 {[%emt 0:00:04]} Rc1 {[%emt 0:01:05]} 39. Rc8 {[%emt 0:00:35]} h5 {[%emt 0:00:43]} 40. c5 {[%emt 0:00:00]} g4 {[%emt 0:00:28]} 41. hxg4 {[%emt 0:11:45]} hxg4 {[%emt 0:00:05]} 42. Kg3 {[%emt 0:01:02]} Kd7 {[%emt 0:01:41]} 43. Rg8 {[%emt 0:01:05]} Rxc5 {[%emt 0:00:07]} 44. Kxg4 {[%emt 0:00:27]} Rc4+ {[%emt 0:02:25]} 45. Kf3 {[%emt 0:02:00]} Ke7 {[%emt 0:01:45]} 46. Rg6 {[%emt 0:01:49]} Kf7 {[%emt 0:00:39]} 47. Rh6 {[%emt 0:00:19]} Rf4+ {[%emt 0:00:21]} 48. Ke3 {[%emt 0:00:21]} Rb4 {[%emt 0:01:30]} 49. f3 {[%emt 0:00:49]} Ra4 {[%emt 0:02:00]} 50. g4 {[%emt 0:00:50]} Rf4 {[%emt 0:01:44]} 51. Rh5 {[%emt 0:03:38]} Kf6 {[%emt 0:00:47]} 52. Rh6+ {[%emt 0:02:30]} 1/2-1/2

[Event "EYCC 2017"]
[Site "Mamaia"]
[Date "2017.09.07"]
[Round "3"]
[White "Eizaguerri Floris, Maria"]
[Black "Bui, Ngoc Han Julia"]
[Result "1-0"]
[ECO "B22"]
[WhiteElo "2098"]
[BlackElo "1850"]
[Annotator "NA"]
[PlyCount "79"]
[EventDate "2017.??.??"]
[EventType "swiss"]
[EventCountry "ROU"]
[SourceTitle "playchess.com"]
[Source "ChessBase"]
[SourceQuality "1"]
[TimeControl "40/5400+30:1800+30"]

1. e4 {[%emt 0:00:00]} c5 {[%emt 0:00:07]} 2. c3 {[%emt 0:00:00]} e6 {[%emt 0:00:06]} 3. d4 {[%emt 0:00:46]} d5 {[%emt 0:00:14]} 4. exd5 {[%emt 0:01:12]} exd5 {[%emt 0:00:08]} 5. Nf3 {[%emt 0:01:27]} Nc6 {[%emt 0:01:36]} 6. Be2 {[%emt 0:05:05]} Bd6 {[%emt 0:05:34]} 7. O-O {[%emt 0:01:53]} Nge7 {[%emt 0:01:51]} 8. dxc5 {[%emt 0:10:57]} Bxc5 {[%emt 0:00:18]} 9. Nd4 {[%emt 0:00:48]} Bxd4 {[%emt 0:15:35]} 10. cxd4 {[%emt 0:00:10]} Qb6 {[%emt 0:00:36]} 11. Nc3 {[%emt 0:15:53]} Qxd4 {[%emt 0:18:09]} 12. Nb5 {[%emt 0:02:32]} Qxd1 {[%emt 0:15:23]} 13. Rxd1 {[%emt 0:00:11]} O-O {[%emt 0:01:10]} 14. Nc7 {[%emt 0:08:51]} Rb8 {[%emt 0:00:07]} 15. Bf4 {[%emt 0:04:46]} Ng6 {[%emt 0:14:31]} 16. Bd6 {[%emt 0:02:15]} Rd8 {[%emt 0:01:15]} 17. Bg3 {[%emt 0:00:06]} Bf5 {[%emt 0:05:25]} 18. Nb5 {[%emt 0:10:25]} Nge5 {[%emt 0:04:06]} 19. Nxa7 {[%emt 0:01:13]} f6 {[%emt 0:02:03]} 20. Nb5 {[%emt 0:03:09]} Rbc8 {[%emt 0:01:50]} 21. f4 {[%emt 0:03:12]} Ng4 {[%emt 0:01:39]} 22. Bf3 {[%emt 0:03:20]} Ne3 {[%emt 0:00:43]} 23. Rd2 {[%emt 0:00:40]} Bg6 {[%emt 0:05:10]} 24. b3 {[%emt 0:05:21]} Nb4 {[%emt 0:00:38]} 25. Bf2 {[%emt 0:03:08]} Nec2 {[%emt 0:03:12]} 26. Rad1 {[%emt 0:01:16]} Bf7 {[%emt 0:00:53]} 27. a3 {[%emt 0:02:03]} Na6 {[%emt 0:00:40]} 28. Bb6 {[%emt 0:04:17]} Re8 {[%emt 0:00:32]} 29. Nd6 {[%emt 0:01:19]} Ne3 {[%emt 0:00:43]} 30. Ra1 {[%emt 0:00:55]} Rc6 {[%emt 0:00:30]} 31. Nxe8 {[%emt 0:03:19]} Rxb6 {[%emt 0:00:04]} 32. Re1 {[%emt 0:01:23]} Re6 {[%emt 0:00:20]} 33. Kf2 {[%emt 0:01:00]} Rxe8 {[%emt 0:01:18]} 34. Rxe3 {[%emt 0:00:08]} Rd8 {[%emt 0:00:24]} 35. b4 {[%emt 0:01:21]} Nc7 {[%emt 0:00:36]} 36. Re7 {[%emt 0:00:45]} Nb5 {[%emt 0:00:26]} 37. Rxb7 {[%emt 0:00:38]} Nxa3 {[%emt 0:00:04]} 38. Ra2 {[%emt 0:01:00]} Nc4 {[%emt 0:00:10]} 39. Raa7 {[%emt 0:00:32]} Nd6 {[%emt 0:00:23]} 40. Rd7 {[%emt 0:00:00]} 1-0

[Event "EYCC 2017"]
[Site "Mamaia"]
[Date "2017.09.07"]
[Round "3"]
[White "Redondo Benavente, Ana"]
[Black "Maltsevskaya, Aleksandra"]
[Result "0-1"]
[ECO "A45"]
[WhiteElo "2087"]
[BlackElo "2271"]
[Annotator "NA"]
[PlyCount "78"]
[EventDate "2017.??.??"]
[EventType "swiss"]
[EventCountry "ROU"]
[SourceTitle "playchess.com"]
[Source "ChessBase"]
[SourceQuality "1"]
[TimeControl "40/5400+30:1800+30"]

1. d4 {[%emt 0:00:00]} Nf6 {[%emt 0:01:47]} 2. Bf4 {[%emt 0:00:20]} d6 {[%emt 0:00:17]} 3. Nc3 {[%emt 0:01:06]} Nbd7 {[%emt 0:03:00]} 4. Nf3 {[%emt 0:05:29]} g6 {[%emt 0:04:03]} 5. e4 {[%emt 0:01:12]} Bg7 {[%emt 0:00:47]} 6. Qd2 {[%emt 0:00:47]} O-O {[%emt 0:02:23]} 7. Bh6 {[%emt 0:03:01]} e5 {[%emt 0:05:38]} 8. Bxg7 {[%emt 0:02:34]} Kxg7 {[%emt 0:00:09]} 9. O-O-O {[%emt 0:00:53]} Qe7 {[%emt 0:01:53]} 10. h4 {[%emt 0:07:22]} h5 {[%emt 0:01:34]} 11. Ng5 {[%emt 0:11:15]} c6 {[%emt 0:06:57]} 12. f4 {[%emt 0:08:36]} b5 {[%emt 0:09:36]} 13. f5 {[%emt 0:12:28]} b4 {[%emt 0:15:54]} 14. Ne2 {[%emt 0:01:11]} c5 {[%emt 0:02:07]} 15. dxe5 {[%emt 0:04:05]} dxe5 {[%emt 0:00:15]} 16. Ng3 {[%emt 0:06:05]} Nb6 {[%emt 0:00:29]} 17. Be2 {[%emt 0:02:55]} Bd7 {[%emt 0:16:51]} 18. Qd6 {[%emt 0:07:29]} Rae8 {[%emt 0:00:19]} 19. Rhf1 {[%emt 0:01:31]} c4 {[%emt 0:02:52]} 20. Qxe7 {[%emt 0:05:33]} Rxe7 {[%emt 0:00:07]} 21. c3 {[%emt 0:00:23]} bxc3 {[%emt 0:09:25]} 22. bxc3 {[%emt 0:00:02]} Na4 {[%emt 0:00:12]} 23. Kc2 {[%emt 0:08:05]} Nc5 {[%emt 0:00:08]} 24. Bxc4 {[%emt 0:00:33]} Ng4 {[%emt 0:00:11]} 25. Kd2 {[%emt 0:03:42]} f6 {[%emt 0:00:55]} 26. Nh3 {[%emt 0:00:29]} Ba4 {[%emt 0:01:41]} 27. Rb1 {[%emt 0:00:38]} Rd8+ {[%emt 0:00:26]} 28. Ke2 {[%emt 0:00:13]} Bc2 {[%emt 0:00:52]} 29. Rb2 {[%emt 0:02:43]} Nxe4 {[%emt 0:01:37]} 30. Nxh5+ {[%emt 0:03:06]} gxh5 {[%emt 0:00:08]} 31. Rxc2 {[%emt 0:00:11]} Ng3+ {[%emt 0:00:12]} 32. Kf3 {[%emt 0:00:55]} Nxf1 {[%emt 0:00:13]} 33. Bxf1 {[%emt 0:00:02]} e4+ {[%emt 0:00:18]} 34. Ke2 {[%emt 0:00:58]} Rd3 {[%emt 0:00:25]} 35. Nf4 {[%emt 0:00:46]} Re3+ {[%emt 0:00:07]} 36. Kd1 {[%emt 0:00:23]} Rd7+ {[%emt 0:00:08]} 37. Rd2 {[%emt 0:00:07]} Rb7 {[%emt 0:06:56]} 38. Kc2 {[%emt 0:01:10]} Re1 {[%emt 0:00:17]} 39. Bc4 {[%emt 0:00:27]} Ne3# {[%emt 0:00:08]} 0-1